fUSD/lending_fUSD_20250108
["ID","MTS","AMOUNT","RATE_DAILY","PERIOD"]
[348166003,1736361586964,-150.0,9.898e-05,2]
[348166004,1736361586989,-300.0,9.898e-05,2]
[348166005,1736361587013,-9550.0,9.899e-05,2]
[348166006,1736361590309,-10000.0,9.899e-05,2]
[348166007,1736361591519,-2356.5239935,9.899e-05,2]
[348166008,1736361591542,-634.00313785,9.899e-05,2]
[348166009,1736361591564,-522.9,9.899e-05,2]
[348166010,1736361591589,-500.0,9.899e-05,2]
[348166011,1736361591615,-500.0,9.899e-05,2]
[348166012,1736361591636,-500.0,9.899e-05,2]
[348166013,1736361591658,-500.0,9.899e-05,2]
[348166014,1736361591682,-500.0,9.899e-05,2]
[348166015,1736361591705,-500.0,9.899e-05,2]
[348166016,1736361591732,-159.566071,9.899e-05,2]
[348166017,1736361591756,-500.0,9.899e-05,2]
[348166018,1736361591780,-500.0,9.899e-05,2]
[348166019,1736361591803,-500.0,9.899e-05,2]
[348166020,1736361591828,-500.0,9.899e-05,2]
[348166021,1736361591851,-500.0,9.899e-05,2]
[348166022,1736361591873,-500.0,9.899e-05,2]
[348166023,1736361591895,-327.00679765,9.899e-05,2]
[348166024,1736361592190,-172.99320235,9.899e-05,2]
[348166025,1736361592215,-500.0,9.899e-05,2]
[348166026,1736361592239,-500.0,9.899e-05,2]
[348166027,1736361592265,-500.0,9.899e-05,2]
[348166028,1736361592289,-500.0,9.899e-05,2]
[348166029,1736361592550,-500.0,9.899e-05,2]
[348166030,1736361592575,-505.84222083,9.899e-05,2]
[348166031,1736361592598,-500.0,9.899e-05,2]
[348166032,1736361592620,-500.0,9.899e-05,2]
[348166033,1736361592643,-500.0,9.899e-05,2]
[348166034,1736361592667,-667.52,9.899e-05,2]
[348166035,1736361592689,-174.570895,9.899e-05,2]
[348166036,1736361592711,-500.0,9.899e-05,2]
[348166037,1736361592736,-500.0,9.899e-05,2]
[348166038,1736361592758,-500.0,9.899e-05,2]
[348166039,1736361592780,-501.59490912,9.899e-05,2]
[348166040,1736361592802,-500.0,9.899e-05,2]
[348166041,1736361592824,-497.13480164,9.899e-05,2]
[348166042,1736361592846,-500.0,9.899e-05,2]
[348166043,1736361592868,-629.27074988,9.899e-05,2]
[348166044,1736361592890,-351.07322118,9.899e-05,2]
[348166045,1736361603039,-242.92697732,9.899e-05,2]
[348166046,1736361603065,-500.0,9.899e-05,2]
[348166047,1736361603090,-164.93648,9.899e-05,2]
[348166048,1736361603116,-500.0,9.899e-05,2]
[348166049,1736361603141,-500.0,9.899e-05,2]
[348166050,1736361603166,-500.0,9.899e-05,2]
[348166051,1736361603190,-586.07070144,9.899e-05,2]
[348166052,1736361603217,-500.0,9.899e-05,2]
[348166053,1736361603241,-501.40623838,9.899e-05,2]
[348166054,1736361603270,-500.0,9.899e-05,2]
[348166055,1736361603294,-500.0,9.899e-05,2]
[348166056,1736361603318,-500.0,9.899e-05,2]
[348166057,1736361603347,-500.0,9.899e-05,2]
[348166058,1736361603373,-151.743853,9.899e-05,2]
[348166059,1736361603397,-556.90623316,9.899e-05,2]
[348166060,1736361603421,-500.0,9.899e-05,2]
[348166061,1736361603447,-2654.82,9.899e-05,2]
[348166062,1736361603472,-141.1895167,9.899e-05,2]
[348166063,1736361604189,-250.56090493,9.899e-05,2]
[348166064,1736361604220,-500.0,9.899e-05,2]
[348166065,1736361604246,-500.0,9.899e-05,2]
[348166066,1736361604274,-1379.69106667,9.899e-05,2]
[348166067,1736361604303,-500.0,9.899e-05,2]
[348166068,1736361604329,-500.0,9.899e-05,2]
[348166069,1736361604356,-739.8,9.972e-05,2]
[348166070,1736361604382,-500.0,9.972e-05,2]
[348166071,1736361604406,-707.5,9.972e-05,2]
[348166072,1736361604430,-1769.41,9.972e-05,2]
[348166073,1736361604455,-939.51,9.972e-05,2]
[348166074,1736361604482,-517.74,9.972e-05,2]
[348166075,1736361604507,-500.0,9.972e-05,2]
[348166076,1736361604536,-500.0,9.972e-05,2]
[348166077,1736361604563,-195.7880284,9.972e-05,2]
[348166078,1736361604702,-659.1819716,9.972e-05,2]
[348166079,1736361604750,-500.0,9.972e-05,2]
[348166080,1736361604778,-500.0,9.972e-05,2]
[348166081,1736361604816,-530.22,9.972e-05,2]
[348166082,1736361604861,-500.0,9.999e-05,2]
[348166083,1736361604936,-261.45815903,9.999e-05,2]
[348166084,1736361605797,500.0,9.899e-05,2]
[348166085,1736361606748,500.0,9.899e-05,2]
[348166086,1736361606781,200.0,9.999e-05,2]
[348166087,1736361607722,165.324323,9.899e-05,2]
[348166088,1736361608250,3819.3549,9.963e-05,2]
[348166089,1736361608855,500.0,9.899e-05,2]
[348166090,1736361609586,500.0,9.972e-05,2]
[348166091,1736361612878,500.0,9.972e-05,2]
[348166092,1736361614393,364.46064637,9.899e-05,2]
[348166093,1736361614423,135.53935363,9.899e-05,2]
[348166094,1736361614603,910.84,9.972e-05,2]
[348166095,1736361614764,500.55396499,9.899e-05,2]
[348166096,1736361616042,1017.1,9.972e-05,2]
[348166097,1736361616469,181.557728,9.899e-05,2]
[348166098,1736361618363,1500.0,9.45e-05,2]
[348166099,1736361621131,1270.27,9.972e-05,2]
[348166100,1736361621166,529.67857793,9.899e-05,2]
[348166101,1736361621711,1433.58,9.972e-05,2]
[348166102,1736361622459,1087.61,9.899e-05,2]
[348166103,1736361623798,500.0,9.899e-05,2]
[348166104,1736361627759,500.0,9.899e-05,2]
[348166105,1736361628421,433.27037545,9.899e-05,2]
[348166106,1736361628445,66.72962455,9.899e-05,2]
[348166107,1736361629910,500.0,9.899e-05,2]
[348166108,1736361636199,399.72754292,9.899e-05,2]
[348166109,1736361637040,500.0,9.899e-05,2]
[348166110,1736361638428,500.0,9.899e-05,2]
[348166111,1736361645487,500.0,9.899e-05,2]
[348166112,1736361645630,500.0,9.899e-05,2]
[348166113,1736361647637,1373.85,9.972e-05,2]
[348166114,1736361648100,500.0,9.899e-05,2]
[348166115,1736361648746,5159.69283253,9.972e-05,2]
[348166116,1736361648778,49.18716747,9.972e-05,2]
[348166117,1736361648822,597.57820962,9.899e-05,2]
[348166118,1736361652273,657.38,9.899e-05,2]
[348166119,1736361653337,500.0,9.899e-05,2]
[348166120,1736361654045,500.0,9.899e-05,2]
[348166121,1736361654367,500.0,9.899e-05,2]
[348166122,1736361655597,500.0,9.899e-05,2]
[348166123,1736361655835,500.0,9.899e-05,2]
[348166124,1736361658240,500.0,9.899e-05,2]
[348166125,1736361659402,500.0,9.899e-05,2]
[348166126,1736361665239,869.43755106,9.973e-05,2]
[348166127,1736361665925,500.0,9.899e-05,2]
[348166128,1736361670991,500.92641991,9.899e-05,2]
[348166129,1736361672020,3325.49065194,9.383e-05,2]
[348166130,1736361672045,407.32934806,9.383e-05,2]
[348166131,1736361672910,503.35668402,9.899e-05,2]
[348166132,1736361674771,500.0,9.899e-05,2]
[348166133,1736361678238,500.0,9.899e-05,2]
[348166134,1736361678395,4991.84,9.972e-05,2]
[348166135,1736361679335,608.48,9.899e-05,2]
[348166136,1736361687938,500.0,9.899e-05,2]
[348166137,1736361688574,500.0,9.899e-05,2]
[348166138,1736361693801,506.77432237,9.899e-05,2]
[348166139,1736361694168,500.0,9.899e-05,2]
[348166140,1736361694309,482.21964555,9.899e-05,2]
[348166141,1736361694333,17.78035445,9.899e-05,2]
[348166142,1736361697229,500.0,9.899e-05,2]
[348166143,1736361698014,720.65,9.899e-05,2]
[348166144,1736361701790,500.0,9.899e-05,2]
[348166145,1736361713971,525.39,9.972e-05,2]
[348166146,1736361714005,500.0,9.899e-05,2]
[348166147,1736361718063,500.0,9.899e-05,2]
[348166148,1736361719104,500.32936988,9.899e-05,2]
[348166149,1736361721238,500.0,9.899e-05,2]
[348166150,1736361725584,500.0,9.899e-05,2]
[348166151,1736361727630,505.24749686,9.899e-05,2]
[348166152,1736361729737,502.87022393,9.899e-05,2]
[348166153,1736361731452,500.0,9.899e-05,2]
[348166154,1736361733763,500.0,9.899e-05,2]
[348166155,1736361733919,500.0,9.899e-05,7]
[348166156,1736361735970,503.5,9.972e-05,2]
[348166157,1736361738803,500.0,9.899e-05,2]
[348166158,1736361740257,500.0,9.899e-05,2]
[348166159,1736361743118,500.0,9.972e-05,2]
[348166160,1736361743379,500.0,9.899e-05,2]
[348166161,1736361744612,224.23255488,9.899e-05,2]
[348166162,1736361744637,275.76744512,9.899e-05,2]
[348166163,1736361746171,500.0,9.899e-05,2]
[348166164,1736361750207,500.0,9.899e-05,2]
[348166165,1736361751500,500.0,9.899e-05,2]
[348166166,1736361752865,500.0,9.899e-05,2]
[348166167,1736361753346,500.0,9.899e-05,2]
[348166168,1736361755400,500.0,9.899e-05,2]
[348166169,1736361756584,500.0,9.899e-05,2]
[348166170,1736361756616,250.0,9.242e-05,2]
[348166171,1736361762471,500.0,9.899e-05,2]
[348166172,1736361763684,500.0,9.899e-05,2]
[348166173,1736361765535,350.0,0.0002,120]
[348166174,1736361766742,500.0,9.899e-05,2]
[348166175,1736361769420,500.0,9.899e-05,2]
[348166176,1736361769857,500.0,9.899e-05,2]
[348166177,1736361770801,500.0,9.899e-05,2]
[348166178,1736361774062,500.0,9.899e-05,2]
[348166179,1736361774236,500.0,9.899e-05,2]
[348166180,1736361776016,514.03,9.899e-05,2]
[348166181,1736361777590,500.0,9.899e-05,2]
[348166182,1736361778056,500.0,9.899e-05,2]
[348166183,1736361778214,460.20255488,9.899e-05,2]
[348166184,1736361778242,39.79744512,9.899e-05,2]
[348166185,1736361781319,587.98191459,9.899e-05,2]
[348166186,1736361781949,500.0,9.899e-05,2]
[348166187,1736361784481,500.0,9.899e-05,2]
[348166188,1736361786509,500.0,9.899e-05,2]
[348166189,1736361788650,966.58,9.899e-05,2]
[348166190,1736361788858,504.25552189,9.899e-05,2]
[348166191,1736361788898,500.0,9.899e-05,2]
[348166192,1736361790987,500.0,9.899e-05,2]
[348166193,1736361791467,500.0,9.899e-05,2]
[348166194,1736361792394,500.0,9.972e-05,2]
[348166195,1736361794790,500.0,9.899e-05,2]
[348166196,1736361795393,500.0,9.899e-05,2]
[348166197,1736361796134,500.0,9.899e-05,2]
[348166198,1736361797138,740.08,9.176e-05,2]
[348166199,1736361799136,443.87629544,9.899e-05,2]
[348166200,1736361799230,1717.42882296,9.176e-05,2]
[348166201,1736361799253,9021.98117704,9.176e-05,2]
[348166202,1736361799882,500.0,9.899e-05,2]
[348166203,1736361801082,478.01882296,9.972e-05,2]
[348166204,1736361801106,21.98117704,9.972e-05,2]
[348166205,1736361801567,502.22649619,9.899e-05,2]
[348166206,1736361804455,502.8200631,9.899e-05,2]
[348166207,1736361805578,500.0,9.899e-05,2]
[348166208,1736361806120,500.0,9.899e-05,2]
[348166209,1736361807245,5649.21,9.176e-05,2]
[348166210,1736361808918,500.0,9.899e-05,2]
[348166211,1736361811531,503.87556113,9.899e-05,2]
[348166212,1736361812710,500.0,9.899e-05,2]
[348166213,1736361813141,500.0,9.899e-05,2]
[348166214,1736361813308,319.88670254,9.899e-05,2]
[348166215,1736361813332,180.11329746,9.899e-05,2]
[348166216,1736361817613,505.47459174,9.899e-05,2]
[348166217,1736361818553,502.20835474,9.899e-05,2]
[348166218,1736361819299,1528.24,9.899e-05,2]
[348166219,1736361821334,503.55089481,9.899e-05,2]
[348166220,1736361823483,500.0,9.899e-05,2]
[348166221,1736361826522,500.0,9.899e-05,2]
[348166222,1736361829267,501.5934097,9.899e-05,2]
[348166223,1736361830209,500.0,9.899e-05,2]
[348166224,1736361830253,500.0,9.899e-05,2]
[348166225,1736361830488,502.10475351,9.899e-05,2]
[348166226,1736361830976,2038.12,9.972e-05,2]
[348166227,1736361831150,1738.59469804,9.142e-05,2]
[348166228,1736361831173,261.40530196,9.142e-05,2]
[348166229,1736361831204,502.66518148,9.899e-05,2]
[348166230,1736361833349,505.78024786,9.899e-05,2]
[348166231,1736361834703,500.0,9.899e-05,2]
[348166232,1736361839071,500.0,9.899e-05,2]
[348166233,1736361841524,500.0,9.899e-05,2]
[348166234,1736361844854,353.97745826,9.899e-05,2]
[348166235,1736361844991,500.0,9.899e-05,2]
[348166236,1736361845257,500.0,9.999e-05,2]
[348166237,1736361845595,500.0,9.999e-05,2]
[348166238,1736361845862,500.0,9.999e-05,2]
[348166239,1736361846105,500.0,9.999e-05,2]
[348166240,1736361846362,217.89258381,9.999e-05,2]
[348166241,1736361846606,500.0,9.899e-05,2]
[348166242,1736361847786,500.0,9.899e-05,2]
[348166243,1736361850946,500.0,9.899e-05,2]
[348166244,1736361853290,500.0,9.899e-05,2]
[348166245,1736361853326,1457.98,9.899e-05,2]
[348166246,1736361854917,500.0,9.972e-05,2]
[348166247,1736361856021,200.29922663,9.899e-05,2]
[348166248,1736361856046,299.70077337,9.899e-05,2]
[348166249,1736361858068,500.0,9.899e-05,2]
[348166250,1736361859026,501.91453561,9.899e-05,2]
[348166251,1736361860235,624.94,9.899e-05,2]
[348166252,1736361863119,500.0,9.972e-05,2]
[348166253,1736361864830,552.82716644,9.899e-05,2]
[348166254,1736361870146,500.0,9.899e-05,2]
[348166255,1736361872492,500.0,9.972e-05,2]
[348166256,1736361872630,501.51766145,9.899e-05,2]
[348166257,1736361876923,500.0,9.899e-05,2]
[348166258,1736361879893,500.0,9.899e-05,2]
[348166259,1736361881867,1953.2,9.972e-05,2]
[348166260,1736361884268,500.0,9.899e-05,2]
[348166261,1736361887794,665.75,9.899e-05,2]
[348166262,1736361888549,503.04145965,9.899e-05,2]
[348166263,1736361890597,501.49864044,9.899e-05,2]
[348166264,1736361893990,395.60976304,9.899e-05,2]
[348166265,1736361894020,572.80023696,9.899e-05,2]
[348166266,1736361896194,659.93,9.899e-05,2]
[348166267,1736361901435,300.0,9.999e-05,2]
[348166268,1736361906380,150.0,9.973e-05,2]
[348166269,1736361913187,641.89437771,9.899e-05,2]
[348166270,1736361915585,500.0,9.899e-05,2]
[348166271,1736361919110,500.0,9.899e-05,2]
[348166272,1736361922148,500.0,9.899e-05,2]
[348166273,1736361924840,315.91337636,9.899e-05,2]
[348166274,1736361925004,709.11,9.972e-05,2]
[348166275,1736361925988,500.0,9.972e-05,2]
[348166276,1736361926043,500.0,9.899e-05,2]
[348166277,1736361927144,272.75727551,9.899e-05,2]
[348166278,1736361929967,633.52644287,9.899e-05,2]
[348166279,1736361930662,315.83384726,9.899e-05,2]
[348166280,1736361932503,516.73251163,9.899e-05,2]
[348166281,1736361933361,500.4692841,9.899e-05,2]
[348166282,1736361934427,500.0,9.899e-05,2]
[348166283,1736361935610,315.01206231,9.899e-05,2]
[348166284,1736361937567,639.83683554,9.899e-05,2]
[348166285,1736361939543,456.18374975,9.899e-05,2]
[348166286,1736361939565,46.70030219,9.899e-05,2]
[348166287,1736361939595,207.43668233,9.899e-05,2]
[348166288,1736361941381,500.0,9.899e-05,2]
[348166289,1736361941629,500.0,9.899e-05,2]
[348166290,1736361941762,315.71645794,9.899e-05,2]
[348166291,1736361941937,200.0,9.15e-05,2]
[348166292,1736361944090,500.0,9.899e-05,2]
[348166293,1736361946379,502.67374507,9.899e-05,2]
[348166294,1736361947635,500.0,9.899e-05,2]
[348166295,1736361947690,500.0,9.899e-05,2]
[348166296,1736361948770,500.57143659,9.899e-05,2]
[348166297,1736361949613,2310.18,9.899e-05,2]
[348166298,1736361949690,500.0,9.899e-05,2]
[348166299,1736361949991,679.57,9.972e-05,2]
[348166300,1736361950859,500.75912301,9.899e-05,2]
[348166301,1736361954738,500.0,9.899e-05,2]
[348166302,1736361955681,500.0,9.899e-05,2]
[348166303,1736361956704,597.992262,9.899e-05,2]
[348166304,1736361960626,138.39999087,9.899e-05,2]
[348166305,1736361960652,361.60000913,9.899e-05,2]
[348166306,1736361961381,300.0,9.999e-05,2]
[348166307,1736361962680,561.58,9.972e-05,2]
[348166308,1736361968522,504.99547243,9.899e-05,2]
[348166309,1736361970545,641.5457375,9.899e-05,2]
[348166310,1736361971410,500.0,9.899e-05,2]
[348166311,1736361975073,500.0,9.899e-05,2]
[348166312,1736361978014,500.0,9.899e-05,2]
[348166313,1736361979547,500.0,9.899e-05,2]
[348166314,1736361982504,1183.9,9.899e-05,2]
[348166315,1736361982915,500.0,9.899e-05,2]
[348166316,1736361993700,500.0,9.899e-05,2]
[348166317,1736362000116,552.64,9.972e-05,2]
[348166318,1736362000819,501.8270167,9.899e-05,2]
[348166319,1736362002919,500.0,9.899e-05,2]
[348166320,1736362003392,250.0,9.163e-05,2]
[348166321,1736362004772,508.17425266,9.899e-05,2]
[348166322,1736362005747,538.18,9.972e-05,2]
[348166323,1736362007122,500.0,9.899e-05,2]
[348166324,1736362011528,95.55751158,9.899e-05,2]
[348166325,1736362011552,404.44248842,9.899e-05,2]
[348166326,1736362011585,500.0,9.899e-05,2]
[348166327,1736362012705,500.0,9.899e-05,2]
[348166328,1736362014623,3859.1,9.899e-05,2]
[348166329,1736362014760,500.0,9.899e-05,2]
[348166330,1736362015063,500.0,9.899e-05,2]
[348166332,1736362020381,500.0,9.899e-05,2]
[348166333,1736362029401,492.31257512,9.899e-05,2]
[348166334,1736362029615,505.75,9.972e-05,2]
[348166335,1736362031937,500.0,9.899e-05,2]
[348166341,1736362040207,501.33260661,9.899e-05,2]
[348166342,1736362042991,529.61,9.972e-05,2]
[348166343,1736362044047,535.85985406,9.899e-05,2]
[348166344,1736362045785,171.59247579,9.899e-05,2]
[348166345,1736362045808,328.40752421,9.899e-05,2]
[348166346,1736362047200,3178.85,9.899e-05,2]
[348166347,1736362048220,500.0,9.899e-05,2]
[348166348,1736362051789,500.0,9.899e-05,2]
[348166349,1736362052911,160.4,9.141e-05,2]
[348166350,1736362056910,500.0,9.899e-05,2]
[348166351,1736362058208,500.0,9.899e-05,2]
[348166352,1736362060802,1000.0,9.141e-05,2]
[348166353,1736362063426,500.0,9.899e-05,2]
[348166354,1736362064472,500.0,9.899e-05,2]
[348166355,1736362066082,544.94027266,9.899e-05,2]
[348166356,1736362072662,505.80617528,9.899e-05,2]
[348166357,1736362074506,500.0,9.972e-05,2]
[348166358,1736362075308,500.0,9.899e-05,2]
[348166359,1736362076878,281.59602785,9.899e-05,2]
[348166360,1736362076903,218.40397215,9.899e-05,2]
[348166361,1736362079420,500.0,9.899e-05,2]
[348166362,1736362079603,500.0,9.899e-05,2]
[348166363,1736362081665,150.0,9.999e-05,2]
[348166364,1736362083446,500.0,9.899e-05,2]
[348166365,1736362083646,500.0,9.899e-05,2]
[348166366,1736362085930,1000.0,9.972e-05,2]
[348166367,1736362088168,504.1107212,9.899e-05,2]
[348166368,1736362090389,500.0,9.899e-05,2]
[348166369,1736362091974,-152.82,0.0001,2]
[348166370,1736362091997,-151.87,0.0001,2]
[348166371,1736362092020,-151.51,0.0001,2]
[348166372,1736362092043,-152.88,0.0001,2]
[348166373,1736362092068,-1011.68,0.0001,2]
[348166374,1736362092091,-983.03,0.0001,2]
[348166375,1736362092116,-998.37,0.0001,2]
[348166376,1736362092139,-1005.08,0.0001,2]
[348166377,1736362092166,-990.68,0.0001,2]
[348166378,1736362092191,-995.49,0.0001,2]
[348166379,1736362092215,-989.12,0.0001,2]
[348166380,1736362092239,-993.11,0.0001,2]
[348166381,1736362092262,-1006.11,0.0001,2]
[348166382,1736362092287,-418.25,0.0001,2]
[348166383,1736362094333,500.0,9.972e-05,2]
[348166384,1736362094790,500.0,9.899e-05,2]
[348166385,1736362095999,-589.23,0.0001,2]
[348166386,1736362096023,-1015.8,0.0001,2]
[348166387,1736362096049,-992.12,0.0001,2]
[348166388,1736362096074,-1003.49,0.0001,2]
[348166389,1736362096099,-989.53,0.0001,2]
[348166390,1736362096122,-1005.49,0.0001,2]
[348166391,1736362096145,-1017.12,0.0001,2]
[348166392,1736362096170,-992.03,0.0001,2]
[348166393,1736362096196,-981.18,0.0001,2]
[348166394,1736362096225,-998.16,0.0001,2]
[348166395,1736362096249,-415.85,0.00010001,2]
[348166396,1736362098020,505.69533548,9.899e-05,2]
[348166397,1736362099600,500.0,9.899e-05,2]
[348166398,1736362100076,500.0,9.899e-05,2]
[348166399,1736362100393,-572.33,0.00010001,2]
[348166400,1736362100421,-987.17,0.00010001,2]
[348166401,1736362100447,-1001.8,0.00010002,2]
[348166402,1736362100473,-984.88,0.00010004,2]
[348166403,1736362100497,-986.35,0.00010006,2]
[348166404,1736362100524,-981.12,0.0001001,2]
[348166405,1736362100550,-997.89,0.00010017,2]
[348166406,1736362100577,-997.15,0.00010027,2]
[348166407,1736362100601,-1013.73,0.00010036,2]
[348166408,1736362100627,-1012.96,0.00010049,2]
[348166409,1736362100652,-464.62,0.0001006,2]
[348166410,1736362102813,504.36680407,9.899e-05,2]
[348166411,1736362104340,-1004.79,0.0001,2]
[348166412,1736362104365,-526.63,0.0001006,2]
[348166413,1736362104389,-4243.08522386,0.00010063,4]
[348166414,1736362104412,-154.04474973,0.00010072,2]
[348166415,1736362104439,-265.514,0.00010072,2]
[348166416,1736362104461,-2827.2686,0.00010072,2]
[348166417,1736362104483,-500.0,0.00010073,2]
[348166418,1736362104505,-478.66742641,0.00010073,2]
[348166419,1736362105167,500.0,9.899e-05,2]
[348166420,1736362109872,503.24409583,9.899e-05,2]
[348166430,1736362110755,-10000.0,0.00010073,2]
[348166431,1736362111922,500.0,9.899e-05,2]
[348166432,1736362115178,-10000.0,0.00010073,2]
[348166433,1736362118054,500.0,9.899e-05,2]
[348166434,1736362118989,500.0,9.899e-05,2]
[348166435,1736362120143,114.17907127,9.972e-05,2]
[348166436,1736362120177,385.82092873,9.972e-05,2]
[348166437,1736362121211,-10000.0,0.00010073,2]
[348166438,1736362124636,500.0,9.972e-05,2]
[348166439,1736362125064,-6627.89777359,0.00010073,2]
[348166440,1736362125087,-1012.9376,0.00010073,2]
[348166441,1736362125112,-2359.16462641,0.00010073,2]
[348166442,1736362126250,500.0,9.899e-05,2]
[348166443,1736362126492,500.0,9.899e-05,2]
[348166444,1736362126552,636.96,9.576e-05,2]
[348166445,1736362129171,500.0,9.899e-05,2]
[348166446,1736362131051,-140.83537359,0.00010073,2]
[348166447,1736362131075,-1012.52,0.00010073,2]
[348166448,1736362131099,-1015.74,0.00010073,2]
[348166449,1736362131162,1462.34,9.899e-05,2]
[348166450,1736362131348,554.716679,9.899e-05,2]
[348166451,1736362140547,530.96875472,9.899e-05,2]
[348166452,1736362141803,-987.19,0.00010137,2]
[348166453,1736362141827,-693.86,0.00010137,2]
[348166454,1736362141848,-1032.3608,0.00010137,2]
[348166455,1736362141871,-500.0,0.00010172,2]
[348166456,1736362141896,-500.0,0.00010172,2]
[348166457,1736362141918,-500.0,0.00010172,2]
[348166458,1736362141945,-500.0,0.00010172,2]
[348166459,1736362141970,-500.0,0.00010172,2]
[348166460,1736362141993,-500.0,0.00010172,2]
[348166461,1736362142016,-500.0,0.00010172,2]
[348166462,1736362142040,-500.0,0.00010172,2]
[348166463,1736362142064,-500.0,0.00010172,2]
[348166464,1736362142087,-576.97,0.00010172,2]
[348166465,1736362142109,-500.0,0.00010172,2]
[348166466,1736362142133,-500.0,0.00010172,2]
[348166467,1736362142155,-500.65433567,0.00010172,2]
[348166468,1736362142177,-500.0,0.00010172,2]
[348166469,1736362142200,-208.96486433,0.00010172,2]
[348166470,1736362143314,1280.5356,0.00010073,2]
[348166471,1736362144467,500.0,9.899e-05,2]
[348166472,1736362146491,-291.03513567,0.00010172,2]
[348166473,1736362146515,-500.0,0.00010172,2]
[348166474,1736362146537,-502.95,0.00010172,2]
[348166475,1736362146559,-500.48833845,0.00010172,2]
[348166476,1736362146582,-500.0,0.00010172,2]
[348166477,1736362146604,-500.50102348,0.00010172,2]
[348166478,1736362146627,-577.51,0.00010172,2]
[348166479,1736362146650,-500.0,0.00010172,2]
[348166480,1736362146672,-500.31768155,0.00010172,2]
[348166481,1736362146693,-500.0,0.00010172,2]
[348166482,1736362146718,-500.0,0.00010172,2]
[348166483,1736362146740,-500.0,0.00010172,2]
[348166484,1736362146763,-471.52733701,0.00010172,2]
[348166485,1736362146786,-500.0,0.00010172,2]
[348166486,1736362146808,-500.0,0.00010172,2]
[348166487,1736362146832,-587.5,0.00010172,2]
[348166488,1736362146854,-500.45813681,0.00010172,2]
[348166489,1736362146876,-434.97513068,0.00010172,2]
[348166490,1736362146901,-500.0,0.00010172,2]
[348166491,1736362146924,-507.98,0.00010172,2]
[348166492,1736362146950,-124.75721635,0.00010172,2]
[348166493,1736362147020,3502.34359269,9.563e-05,2]
[348166494,1736362147044,6977.21907127,9.563e-05,2]
[348166495,1736362147067,10000.0,9.563e-05,2]
[348166503,1736362231758,-300.0,9.562e-05,2]
[348166504,1736362231993,-104.36,9.563e-05,2]
[348166505,1736362232006,-876.77,9.563e-05,2]
[348166506,1736362232018,-1007.59,9.563e-05,2]
[348166507,1736362232028,-998.88,9.563e-05,2]
[348166508,1736362232037,-997.77,9.563e-05,2]
[348166509,1736362232046,-3420.43733604,9.563e-05,2]
[348166510,1736362232056,-500.0,9.899e-05,2]
[348166511,1736362232066,-757.86,9.899e-05,2]
[348166512,1736362232076,-500.0,9.899e-05,2]
[348166513,1736362232085,-701.16,9.899e-05,2]
[348166514,1736362232095,-2580.23,9.899e-05,2]
[348166515,1736362232104,-500.0,9.899e-05,2]
[348166516,1736362232114,-628.18,9.899e-05,2]
[348166517,1736362232123,-276.38691764,9.899e-05,2]
[348166518,1736362232135,-223.61308236,9.899e-05,2]
[348166519,1736362232144,-500.0,9.899e-05,2]
[348166520,1736362232153,-434.61491764,9.899e-05,2]
[348166521,1736362232165,-65.38508236,9.899e-05,2]
[348166522,1736362232175,-500.0,9.899e-05,2]
[348166523,1736362232184,-315.70167298,9.899e-05,2]
[348166524,1736362232195,-184.29832702,9.899e-05,2]